[Event "U12 Blitz"]
[Site "austriaU12b"]
[Date "2020.12.11"]
[Round "1"]
[White "Marty McFly"]
[Black "Ppe1968"]
[Result "0-1"]
[WhiteElo "1697"]
[BlackElo "1881"]
[Annotator "NA RC"]
[PlyCount "44"]
[EventDate "2020.12.11"]
[EventType "blitz"]
[TimeControl "180+2"]

1. e4 {[%emt 0:00:03]} e5 {[%emt 0:00:04]} 2. Nf3 {[%emt 0:00:02]} Nc6 {[%emt 0:00:02]} 3. Bc4 {[%emt 0:00:01]} Bc5 {[%emt 0:00:02]} 4. Nc3 {[%emt 0:00:02]} Nf6 {[%emt 0:00:09]} 5. d3 {[%emt 0:00:02]} d6 {[%emt 0:00:01]} 6. Bg5 {[%emt 0:00:02]} h6 {[%emt 0:00:07]} 7. Bh4 {[%emt 0:00:02]} a6 {[%emt 0:00:05]} 8. Nd5 {[%emt 0:00:03]} g5 {[%emt 0:00:05]} 9. Bg3 {[%emt 0:00:03]} Bg4 {[%emt 0:00:10]} 10. h3 {[%emt 0:00:02]} Bh5 {[%emt 0:00:02]} 11. Nxf6+ {[%emt 0:00:03]} Qxf6 {[%emt 0:00:01]} 12. Bd5 {[%emt 0:00:08]} Nd4 {[%emt 0:00:20]} 13. Bxb7 {[%emt 0:00:16]} Rb8 {[%emt 0:00:05]} 14. Bxa6 {[%emt 0:00:04]} Nxf3+ {[%emt 0:00:07]} 15. gxf3 {[%emt 0:00:20]} Bxf3 {[%emt 0:00:02]} 16. Qd2 {[%emt 0:00:02]} Bxh1 {[%emt 0:00:07]} 17. O-O-O {[%emt 0:00:03]} Bf3 {[%emt 0:00:01]} 18. Rf1 {[%emt 0:00:03]} d5 {[%emt 0:00:27]} 19. exd5 {[%emt 0:00:04]} Qxa6 {[%emt 0:00:03]} 20. Bxe5 {[%emt 0:00:06]} Qxa2 {[%emt 0:00:09]} 21. c3 {[%emt 0:00:08]} Qa1+ {[%emt 0:00:04]} 22. Kc2 {[%emt 0:00:07]} Qxb2# {[%emt 0:00:03] Mate} 0-1

[Event "U12 Blitz"]
[Site "austriaU12b"]
[Date "2020.12.11"]
[Round "3"]
[White "JoniFei"]
[Black "Viktor09"]
[Result "0-1"]
[WhiteElo "1515"]
[BlackElo "1787"]
[Annotator "NA RC"]
[PlyCount "58"]
[EventDate "2020.12.11"]
[EventType "blitz"]
[TimeControl "180+2"]

1. e4 {[%emt 0:00:09]} c5 {[%emt 0:00:03]} 2. Nf3 {[%emt 0:00:02]} Nc6 {[%emt 0:00:01]} 3. c3 {[%emt 0:00:02]} d5 {[%emt 0:00:02]} 4. exd5 {[%emt 0:00:02]} Qxd5 {[%emt 0:00:01]} 5. d3 {[%emt 0:00:17]} Nf6 {[%emt 0:00:10]} 6. Be3 {[%emt 0:00:09]} e6 {[%emt 0:00:04]} 7. Be2 {[%emt 0:00:05]} Be7 {[%emt 0:00:05]} 8. O-O {[%emt 0:00:05]} O-O {[%emt 0:00:02]} 9. Qc2 {[%emt 0:00:03]} Qd8 {[%emt 0:00:06]} 10. Nbd2 {[%emt 0:00:03]} b5 {[%emt 0:00:05]} 11. a4 {[%emt 0:00:03]} b4 {[%emt 0:00:15]} 12. Bxc5 {[%emt 0:00:32]} Bxc5 {[%emt 0:00:06]} 13. cxb4 {[%emt 0:00:04]} Bxf2+ {[%emt 0:00:12]} 14. Rxf2 {[%emt 0:00:04]} Nxb4 {[%emt 0:00:01]} 15. Qc3 {[%emt 0:00:04]} Nbd5 {[%emt 0:00:04]} 16. Qe5 {[%emt 0:00:06]} Ba6 {[%emt 0:00:07]} 17. Ne4 {[%emt 0:00:05]} Rb8 {[%emt 0:00:13]} 18. Bf1 {[%emt 0:00:15] Restarted W (13.16e) Restarted B (13.16e) OK OK} (18. h3 $17 {keeps fighting.}) 18... Ng4 {[%emt 0:00:05]} 19. Qg3 {[%emt 0:00:07]} Nxf2 {[%emt 0:00:01]} 20. Qxf2 {[%emt 0:00:03]} Qb6 {[%emt 0:00:04]} 21. Qxb6 {[%emt 0:00:25]} Rxb6 {[%emt 0:00:04]} 22. Ra2 {[%emt 0:00:01]} Rfb8 {[%emt 0:00:05]} 23. Ne5 {[%emt 0:00:05]} Rxb2 {[%emt 0:00:06]} 24. Rxb2 {[%emt 0:00:01]} Rxb2 {[%emt 0:00:03]} 25. Nc4 {[%emt 0:00:02]} Bxc4 {[%emt 0:00:04]} 26. dxc4 {[%emt 0:00:01]} Ne3 {[%emt 0:00:05]} 27. c5 {[%emt 0:00:05]} Nxf1 {[%emt 0:00:13]} 28. Kxf1 {[%emt 0:00:02]} Rc2 {[%emt 0:00:01]} 29. h3 {[%emt 0:00:09]} Rc4 {[%emt 0:00:02] JoniFei resigns Viktor09 reconnected.} 0-1